Cogmind - Beta 9.1 @@@ ROGUE MODE // 2019.11.01 @ 17:01:15 Player: Musaab Result: Destroyed by G-47 Trooper with Particle Gun Performance ------------- Evolutions (0) 0 Regions Visited (2) 400 Robots Destroyed (25) 125 Value Destroyed (687) 687 Prototype IDs (3) 60 Alien Tech Used (0) 0 Bonus (0) 0 TOTAL SCORE: 1272 Bonus ------- None Cogmind --------- Core Integrity 0/250 Matter 189/300 Energy 250/250 System Corruption 0% Temperature Cool (13) Location -10/Mines Parts ------- Power (1) Ion Engine Propulsion (2) Aluminum Leg Aluminum Leg Utility (2) Medium Storage Unit Visual Processing Unit Weapon (2) Light Assault Rifle Autogun Inventory (8) Light Ion Engine Light Nuclear Core Aluminum Leg Aluminum Leg Heat Sink Particle Gun Assault Rifle Light Assault Rifle Peak State ------------ Power Light Ion Engine Propulsion Aluminum Leg Aluminum Leg Utility Medium Storage Unit Visual Processing Unit Weapon Light Assault Rifle Autogun Inventory Light Nuclear Core Aluminum Leg Aluminum Leg Heat Sink Particle Gun Assault Rifle Light Assault Rifle [Rating: 10] Favorites ----------- Power Ion Engine Engine Ion Engine Propulsion Aluminum Leg Leg Aluminum Leg Utility Medium Storage Unit Device Heat Sink Storage Medium Storage Unit Processor Visual Processing Unit Protection Weapon Shielding Weapon Light Assault Rifle Ballistic Gun Light Assault Rifle Build | -11 -10 -10 ------- Run | Scr Mat Min Slots Evolved . | . . . Power . | . . . Propulsion . | . . . Utility . | . . . Weapon . | . . . Parts Attached 37 | 6 10 21 Power 6 | 1 1 4 Engine 6 | 1 1 4 Core . | . . . Reactor . | . . . Propulsion 14 | 2 3 9 Treads . | . . . Leg 14 | 2 3 9 Wheel . | . . . Hover . | . . . Flight . | . . . Utility 7 | 1 4 2 Device 1 | . . 1 Storage 4 | 1 3 . Processor 1 | . . 1 Hackware . | . . . Protection 1 | . 1 . Artifact . | . . . Weapon 10 | 2 2 6 Energy Gun . | . . . Energy Cannon . | . . . Ballistic Gun 10 | 2 2 6 Ballistic Cannon . | . . . Launcher . | . . . Special Weapon . | . . . Impact Weapon . | . . . Slashing Weapon . | . . . Piercing Weapon . | . . . Special Melee Weapon . | . . . Unidentified Prototypes . | . . . Parts Lost 7 | . . 7 Power 1 | . . 1 Propulsion 2 | . . 2 Utility 1 | . . 1 Weapon 3 | . . 3 Highest Loss Streak 6 | . . 6 Average Slot Usage (%) 97 | . 93 98 Engine 13 | . 13 13 Leg 27 | . 27 27 Storage 14 | . 14 14 Processor 4 | . . 5 Protection 8 | . 11 7 Ballistic Gun 27 | . 25 27 Naked Turns . | . . . Heaviest Build 18 | 12 17 18 Greatest Support 20 | 20 20 20 Greatest Overweight (x) 2 | 1 2 . Average Overweight (x) . | . . . Largest Inventory Capacity 10 | 6 10 8 Average Capacity 7 | 4 7 8 Most Carried 8 | 4 8 8 Average Carried 6 | 2 6 7 Final Capacity 8 | 6 8 8 Final Carried 8 | 2 7 8 Class Distribution -------------------- 75% | Mutant 24% | Scavenger-Mutant Dominant Class ---------------- Mutant | -10/Materials Mutant | -10/Mines Resources | -11 -10 -10 ----------- Run | Scr Mat Min Matter Collected 837 | 200 194 443 Remotely . | . . . Salvage Created 792 | . 45 747 Parts 62 | . 8 54 Haulers Intercepted . | . . . Recyclers Shooed . | . . . Parts Field Recycled . | . . . Retrieved Matter . | . . . Parts Self-Destructed . | . . . Prevented . | . . . Kills | -11 -10 -10 ------- Run | Scr Mat Min Combat Hostiles Destroyed 22 | . 1 21 Guns 22 | . 1 21 Classes Destroyed 6 | . 2 4 Worker 1 | . . 1 Builder 1 | . . 1 Watcher 1 | . 1 . Swarmer 3 | . . 3 Grunt 18 | . 1 17 Assembled 1 | . . 1 Best Kill Streak 7 | . 1 7 Combat Bots Only 7 | . 1 7 Max Kills in Single Turn 1 | . 1 1 Gunslinging . | . . . Exploded . | . . . Melee . | . . . Uniques/NPCs Destroyed . | . . . Combat | -11 -10 -10 -------- Run | Scr Mat Min Damage Taken 1582 | . 54 1528 Core 257 | . 10 247 Absorbed by Shields . | . . . Core Remaining (%) 100 | 100 . . Volleys Fired 90 | . 10 80 Largest 2 | . 2 2 Hottest 43 | . 40 43 Shots Fired 177 | . 20 157 Gun 177 | . 20 157 Cannon . | . . . Launcher . | . . . Special . | . . . Kinetic 177 | . 20 157 Thermal . | . . . Explosive . | . . . Electromagnetic . | . . . Robot Hit Streak 10 | . 3 10 Robot Miss Streak 4 | . 3 4 Penetration Max . | . . . Secondary Targets 3 | . . 3 Max Gunslinging Chain 1 | . . 1 Shots Hit Robots 96 | . 8 88 Core Hits 41 | . 4 37 Critical Hits 2 | . . 2 Critical Kills 1 | . . 1 Critical Parts Destroyed 1 | . . 1 Melee Attacks . | . . . Impact . | . . . Slashing . | . . . Piercing . | . . . Sneak Attacks . | . . . Combat Hostiles . | . . . Follow-up Attacks . | . . . Damage Inflicted 1143 | . 64 1079 Guns 1143 | . 64 1079 Cannons . | . . . Explosions . | . . . Melee . | . . . Ramming . | . . . Kinetic 1143 | . 64 1079 Thermal . | . . . Explosive . | . . . Electromagnetic . | . . . Impact . | . . . Slashing . | . . . Piercing . | . . . Highest Corruption . | . . . Average Corruption . | . . . Corruption Purged . | . . . Overload Shots . | . . . Overflow Damage . | . . . Projectiles . | . . . Explosions . | . . . Melee . | . . . Knockbacks . | . . . Impact . | . . . Kinetic . | . . . Secondary . | . . . Self-Inflicted Damage . | . . . Shots . | . . . Rammed . | . . . Targets Rammed . | . . . Kicked . | . . . Crushed . | . . . Highest Temperature 49 | . 6 49 Average Temperature 11 | . 6 11 Received Heat Transfer 780 | . 30 750 Siege Activations . | . . . Robots Corrupted . | . . . Combat Hostiles . | . . . Parts Fried . | . . . Impact Corruptions . | . . . Robots Melted . | . . . Combat Hostiles . | . . . Parts Melted . | . . . Heat Transferred . | . . . Parts Sabotaged . | . . . Parts Stolen . | . . . Parts Stripped . | . . . Power Chain Reactions . | . . . Missiles Intercepted . | . . . Alert | -11 -10 -10 ------- Run | Scr Mat Min Peak Influence 250 | . 110 250 Average Influence 60 | . 26 75 Maximum Alert Level 1 | . . 1 Low Security (%) 95 | . . . Level 1 4 | . . . Level 2 . | . . . Level 3 . | . . . Level 4 . | . . . Level 5 . | . . . High Security . | . . . Max Security . | . . . Squads Dispatched 2 | . 2 . Investigation 1 | . 1 . Extermination . | . . . Reinforcement 1 | . 1 . Assault . | . . . Garrison . | . . . Intercept . | . . . Construction Impeded . | . . . Haulers Reinforced . | . . . Stealth | -11 -10 -10 --------- Run | Scr Mat Min Distress Signals 1 | . . 1 Communications Jammed . | . . . Distress Signals . | . . . Times Spotted 28 | . 5 23 Peak Tracking Total 8 | . 2 8 Tactical Retreats . | . . . Traps | -11 -10 -10 ------- Run | Scr Mat Min Traps Triggered 2 | . 2 . Indirectly . | . . . Trap Hack Attempts . | . . . Triggered . | . . . Disarmed . | . . . Reprogrammed . | . . . Reused . | . . . Traps Extracted . | . . . Installed . | . . . Triggered . | . . . Machines | -11 -10 -10 ---------- Run | Scr Mat Min Machines Disabled 1 | . . 1 Max in Single Turn 1 | . . 1 Machines Sabotaged . | . . . Garrisons Compromised . | . . . Overloaded Fab Kills . | . . . Fab Network Shutdowns . | . . . Hacking | -11 -10 -10 --------- Run | Scr Mat Min Machines Accessed 3 | . 3 . Terminals 2 | . 2 . Fabricators . | . . . Repair Stations . | . . . Recycling Units 1 | . 1 . Scanalyzers . | . . . Garrison Access . | . . . Total Hacks 14 | . 14 . Successful 7 | . 7 . Failed 7 | . 7 . Catastrophic 2 | . 2 . Database Lockouts . | . . . Manual . | . . . Terminals 6 | . 6 . Fabricators . | . . . Repair Stations . | . . . Recycling Units 8 | . 8 . Scanalyzers . | . . . Garrison Access . | . . . Terminal Hacks 2 | . 2 . Prototype ID Bank 1 | . 1 . Hauler Manifests 1 | . 1 . Fabricator Hacks . | . . . Repair Station Hacks . | . . . Recycling Unit Hacks 5 | . 5 . Retrieve Matter 3 | . 3 . Retrieve Components 2 | . 2 . Scanalyzer . | . . . Garrison Access Hacks . | . . . Unauthorized Hacks . | . . . Terminals . | . . . Fabricators . | . . . Repair Stations . | . . . Recycling Units . | . . . Scanalyzers . | . . . Garrison Access . | . . . Data Cores Recovered . | . . . Used . | . . . Hacking Detections 3 | . 3 . Full Trace Events 3 | . 3 . Feedback Events . | . . . Feedback Blocked . | . . . Robot Schematics Acquired . | . . . Robots Built . | . . . Matter . | . . . Time . | . . . Total Robot Build Rating . | . . . Part Schematics Acquired . | . . . Parts Built . | . . . Matter . | . . . Time . | . . . Total Part Build Rating . | . . . Parts Repaired . | . . . Time . | . . . Parts Recycled . | . . . Recycled Matter . | . . . Retrieved Matter . | . . . Retrieved Components 2 | . 2 . Parts Scanalyzed . | . . . Part Schematics Acquired . | . . . Parts Damaged . | . . . Bothacking | -11 -10 -10 ------------ Run | Scr Mat Min Used RIF Installer . | . . . Robots Hacked . | . . . Non-combat . | . . . Combat . | . . . Robot Hacks Applied . | . . . Relay Couplers Released . | . . . Robots Rewired . | . . . Allies Hacked . | . . . Hacks Repelled . | . . . Allies | -11 -10 -10 -------- Run | Scr Mat Min Total Allies 3 | . . 3 Largest Group 3 | . . 3 Highest-Rated Group 40 | . . 40 Highest-Rated Ally 16 | . . 16 Total Orders . | . . . Ally Attacks 2 | . . 2 Total Damage 27 | . . 27 Kills . | . . . Allies Corrupted 2 | . . 2 Allies Melted . | . . . Intel | -11 -10 -10 ------- Run | Scr Mat Min Robot Analysis Total . | . . . Derelict Logs Recovered . | . . . Drone Launches . | . . . Drone Recoveries . | . . . Exploration | -11 -10 -10 ------------- Run | Scr Mat Min Turns Passed 1366 | 58 321 987 Spaces Moved 537 | 47 224 266 Core 16 | 15 1 . Treads . | . . . Legs 521 | 32 223 266 Wheels . | . . . Hover . | . . . Flight . | . . . Fastest Speed 50 | 50 120 120 Average Speed 118 | 99 120 120 Slowest Speed 150 | 120 150 120 Overloaded Moves . | . . . Propulsion Burnouts . | . . . Robots Hopped . | . . . Cave-ins Triggered . | . . . Exploration Rate (%) 31 | 4 43 47 Regions Visited 2 Branch Regions 1 Pre-discovered Areas . | . . . Known Exits Taken . | . . . Unknown Exits Taken 2 | 1 1 . Scrap Searched 1 | . . 1 Spaces Dug . | . . . Terrain Destroyed . | . . . Melee . | . . . Projectile . | . . . AOE . | . . . Actions | -11 -10 -10 --------- Run | Scr Mat Min Total 1125 | 56 256 813 Wait 424 | . . 424 Move 535 | 46 223 266 Hop . | . . . Pick Up 22 | 4 9 9 Fast Attach 10 | 4 5 1 Attach 10 | 2 2 6 Detach . | . . . Swap 17 | . 3 14 Drop 17 | . 4 13 Fire 90 | . 10 80 Melee . | . . . Ram . | . . . Kick . | . . . Crush . | . . . Escape Stasis . | . . . Rewire . | . . . Trap . | . . . Miscellaneous . | . . . Route ------- -11/Scrapyard -10/Materials (discovered 3 exits: [*Mat] / [*Min x2]) -10/Mines History --------- Turn | Location | Event 13 | -11/Scrapyard | Discovered new exit (range 15) 59 | -11/Scrapyard | Entered Materials 250 | -10/Materials | Discovered new exit (range 10) 329 | -10/Materials | Build established: Mutant 358 | -10/Materials | Discovered new exit (range 15) 376 | -10/Materials | Discovered new exit (range 13) 380 | -10/Materials | Entered Mines 386 | -10/Mines | Assisted by bots powering up and referring to "LRC-V3" 422 | -10/Mines | Excavation squad dispatched 422 | -10/Mines | A large section of the Mines collapsed 672 | -10/Mines | Excavation squad dispatched 922 | -10/Mines | Excavation squad dispatched 1127 | -10/Mines | Core integrity fell below 50% 1172 | -10/Mines | Excavation squad dispatched 1206 | -10/Mines | Destroyed 7 combat bots 1209 | -10/Mines | Lost 6 parts (1p2n3w) 1294 | -10/Mines | Core integrity fell below 20% 1367 | -10/Mines | Destroyed by G-47 Trooper with Particle Gun Last Messages --------------- 01252_ Found 32 Matter. 01252_ Found Signal Interpreter. 01252_ Found Welding Torch. 01252_ Found 22 Matter. 01253_ Acquired 32 matter. 01296_ Destroyed Sml. Laser. 01296_ G-34 Mercenary destroyed. 01307_ K-01 Serf collects debris. 01310_ Dropped Ion Engine. 01313_ Dropped Aluminum Leg. 01313_ K-01 Serf collects debris. 01317_ Dropped Aluminum Leg. 01318_ G-34 Mercenary destroyed. 01321_ K-01 Serf collects debris. 01334_ G-34 Mercenary destroyed. 01350_ Acquired 33 matter. 01355_ Acquired 40 matter. 01359_ K-01 Serf collects debris. 01360_ K-01 Serf destroyed. 01363_ G-34 Mercenary destroyed. Map ----- +----------------------------------------------------+ | ???????????????????????????? ?????? | | ?????????????????????????? ?????? | | ??????????????????????? ?????? | | ?????????????????????? #????? | | ??????????????????????? ????? | | ??????????????????????? ????? | | ???????????????????????? ##??? | | ???????????????????????? #??? | | ????????????????????????? ##?? | | ?????????????????????????# #?? | | ????????????????????????## #?? | | ???????????????????????## ?? | | ???????????????????????? ??? | | ???????????????????????? ??? | | ????????????????????????# ???? | | ????????????????????????# # = ???? | | ????????????????????????# ##% #???? | | ????????????????????????# [## #???? | | ????????????????????????#*g### #???? | | ????????????????????????#=!### #???? | | ????????????????????????#%= #???? | | ????????????????????????#=%#####???? | | ????????????????????????# *#???????? | | ????????????????????????#!*#???????? | | ???????????????????????##= ##??????? | | ???????????????????????#!@[ ##?????? | | ???????????????????????# = #?????? | | ???????????????????????#* #?????? | | ???????????????????????# ##????? | | ??????????????????????## ##???? | | ????????????????????### #???? | | ???????????????????## ##???? | | ???????????????????# ###????? | | ???????????????????# ###??????? | | ???????????????????# ##????????? | | ???????????????????# ##????????? | | ???????????????????## ##???????? | | ????????????????????# #???????? | | ????????????????????# #???????? | | ????????????????????# #???????? | | ???????????########## ##??????? | | ???????##### ## #??????? | | ??????## #??????? | | ?????## ##??????? | | ????## #### """ ##???????? | | #??## ####### """ ######???? | | #### #?# """ !#???? | | #?# | #???? | | ### #?# ###### %#???? | | #?# #?# #?##### ##??? | +----------------------------------------------------+ Best States ------------- Heat Dissipation 25 Energy Generation 10 Energy Capacity 250 Matter Stores 300 Matter Capacity 300 Sight Range 18 Terrain Scan Density 10 Weapon Shielding 33 Evasion (%) 50 Item Schematics ----------------- None Robot Schematics ------------------ None Fabricated ------------ Nothing Alien Tech Used ----------------- None Achievements -------------- None Challenges ------------ None Game ------ Seed SwarmRegenerativeWings Manual? 0 Play Time 00:15:24 Cumulative 6.3 hours Start 2019.11.01 @ 16:39:12 End 2019.11.01 @ 17:01:15 Sessions 1 Manual Loads 0 Difficulty Rogue Special Mode None Game No. 17 Rogue 17 Adventurer 0 Explorer 0 Win Type - Total 0 Types 0/0/0/0/0/0/0 Lore% 4 Gallery% 11 Achievement% 9 Wizard Run 0 Options --------- ASCII 0 Keyboard 0 Movement Mouse Keybinds 0 Fullscreen 1 Font 18/SmallcapsGlow Map View 76x50 Tactical HUD 1 Map Filters NONE Filters NONE Steam 1 RUN: ec1be62c-8345-4ccf-9dcf-92a9d2010f97